fUSD/lending_fUSD_20241125
["ID","MTS","AMOUNT","RATE_DAILY","PERIOD"]
[343301114,1732549891261,-1850.27,0.00044383,30]
[343301115,1732549891271,-1008.12,0.00044383,30]
[343301116,1732549891280,-500.0,0.00044383,30]
[343301117,1732549891290,-567.77,0.00044383,30]
[343301118,1732549891299,-500.0,0.00044383,30]
[343301119,1732549891309,-500.0,0.00044383,30]
[343301120,1732549891319,-500.0,0.00044383,30]
[343301121,1732549891328,-500.0,0.00044383,30]
[343301122,1732549891338,-13703.57,0.00044383,30]
[343301123,1732549891348,-500.0,0.00044383,30]
[343301124,1732549891357,-6234.87,0.00044383,30]
[343301125,1732549891367,-500.0,0.00044383,30]
[343301126,1732549891376,-2005.94,0.00044383,30]
[343301127,1732549891386,-500.0,0.00044383,30]
[343301128,1732549891396,-500.0,0.00044383,30]
[343301129,1732549891405,-641.71,0.00044383,30]
[343301130,1732549891415,-558.45,0.00044383,30]
[343301131,1732549891424,-515.13,0.00044383,30]
[343301132,1732549891432,-500.0,0.00044383,30]
[343301133,1732549891442,-390.79830122,0.00044383,30]
[343301134,1732549891451,-500.0,0.00044383,30]
[343301135,1732549891461,-500.0,0.00044383,30]
[343301136,1732549891471,-500.0,0.00044383,30]
[343301137,1732549891480,-500.0,0.00044383,30]
[343301138,1732549891498,-500.0,0.00044383,30]
[343301139,1732549891508,-500.0,0.00044383,30]
[343301140,1732549891517,-500.0,0.00044383,30]
[343301141,1732549891527,-4568.06,0.00044383,30]
[343301142,1732549891536,-2367.1,0.00044383,120]
[343301143,1732549891546,-596.46,0.00044383,30]
[343301144,1732549891555,-496.63733632,0.00044383,30]
[343301145,1732549891564,-715.03,0.00044383,30]
[343301146,1732549891574,-181.10369024,0.00044383,30]
[343301147,1732549891583,-4472.84,0.00044383,30]
[343301148,1732549891592,-500.0,0.00044383,30]
[343301149,1732549891602,-500.0,0.00044383,30]
[343301150,1732549891611,-500.0,0.00044383,30]
[343301151,1732549891620,-500.0,0.00044383,30]
[343301152,1732549891630,-2325.15,0.00044383,30]
[343301153,1732549891639,-169.53,0.00044383,30]
[343301154,1732549891648,-500.0,0.00044383,30]
[343301155,1732549891657,-500.0,0.00044383,30]
[343301156,1732549891666,-500.0,0.00044383,30]
[343301157,1732549891675,-500.0,0.00044383,30]
[343301158,1732549891685,-196.71856209,0.00044383,30]
[343301159,1732549891694,-500.0,0.00044383,30]
[343301160,1732549891704,-500.0,0.00044383,30]
[343301161,1732549891714,-500.0,0.00044383,2]
[343301162,1732549891724,-500.0,0.00044383,30]
[343301163,1732549891739,-500.0,0.00044383,30]
[343301164,1732549891749,-500.0,0.00044383,30]
[343301165,1732549891759,-500.0,0.00044383,30]
[343301166,1732549891768,-520.56389255,0.00044383,30]
[343301167,1732549891777,-500.0,0.00044383,30]
[343301168,1732549891789,-500.0,0.00044383,30]
[343301169,1732549891799,-388.08619418,0.00044383,30]
[343301170,1732549891809,-1194.12,0.00044383,30]
[343301171,1732549891819,-500.0,0.00044383,30]
[343301172,1732549891828,-389.11454187,0.00044383,30]
[343301173,1732549891838,-500.0,0.00044383,30]
[343301174,1732549891847,-500.0,0.00044383,30]
[343301175,1732549891856,-5414.79,0.00044383,30]
[343301176,1732549891866,-500.0,0.00044383,30]
[343301177,1732549891875,-254.46720959,0.00044383,30]
[343301178,1732549891884,-500.0,0.00044383,30]
[343301179,1732549891893,-500.0,0.00044383,30]
[343301180,1732549891903,-500.0,0.00044383,30]
[343301181,1732549891912,-2122.24,0.00044383,30]
[343301182,1732549891921,-8933.19,0.00044383,30]
[343301183,1732549891931,-150.0,0.00044388,2]
[343301184,1732549891942,-150.0,0.00044391,2]
[343301185,1732549891951,-161.411735,0.00044402,30]
[343301186,1732549891959,-500.0,0.00044427,120]
[343301187,1732549891971,-1600.0,0.0004444,2]
[343301188,1732549891980,-1015.0,0.00044444,120]
[343301189,1732549891995,-150.0,0.00044447,2]
[343301190,1732549892004,-150.0,0.0004445,2]
[343301191,1732549892014,-150.0,0.00044454,2]
[343301192,1732549892024,-150.0,0.0004446,2]
[343301193,1732549892034,-165.97,0.00044467,2]
[343301194,1732549892043,-150.0,0.00044481,7]
[343301195,1732549892052,-150.0,0.00044493,2]
[343301196,1732549892062,-3627.15878787,0.000445,30]
[343301197,1732549892071,-172.00753208,0.000445,19]
[343301198,1732549892081,-159.98701408,0.00044512,28]
[343301199,1732549892090,-150.0,0.00044519,30]
[343301200,1732549892099,-535.87,0.00044519,7]
[343301201,1732549892108,-211.073511,0.0004452,7]
[343301202,1732549892118,-211.073511,0.0004452,7]
[343301203,1732549892127,-561.88,0.0004452,120]
[343301204,1732549892136,-561.88,0.0004452,120]
[343301205,1732549892145,-561.88,0.0004452,120]
[343301206,1732549892154,-1002.01527672,0.00044522,10]
[343301207,1732549892164,-513.37711531,0.00044522,10]
[343301208,1732549892173,-150.0,0.00044526,7]
[343301209,1732549892182,-192.56108824,0.00044529,19]
[343301210,1732549892192,-150.0,0.00044531,2]
[343301211,1732549892203,-150.0,0.00044537,7]
[343301212,1732549892213,-814.85,0.00044542,120]
[343301213,1732549892223,-150.0,0.00044546,2]
[343301214,1732549892234,-36834.002125,0.000446,2]
[343301215,1732549892244,-151.0,0.000446,14]
[343301216,1732549892254,-151.0,0.000446,14]
[343301217,1732549892263,-151.0,0.000446,14]
[343301218,1732549892273,-151.0,0.000446,14]
[343301219,1732549892282,-151.0,0.000446,14]
[343301220,1732549892292,-315.548186,0.000446,14]
[343301221,1732549892301,-1799.028043,0.000446,14]
[343301222,1732549892310,-1799.028043,0.000446,14]
[343301223,1732549892320,-959624.07319946,0.000446,30]
[343301224,1732549892330,-158.0,0.000446,50]
[343301225,1732549892340,-2065.99,0.00044602,2]
[343301226,1732549892354,-663.78,0.00044619,30]
[343301227,1732549892363,-663.78,0.00044619,30]
[343301228,1732549892372,-663.78,0.00044619,30]
[343301229,1732549892382,-663.78,0.00044619,30]
[343301230,1732549892391,-663.91103176,0.00044619,30]
[343301231,1732549892400,-176.530431,0.00044619,14]
[343301232,1732549892410,-207.720457,0.00044619,14]
[343301233,1732549892420,-207.72045,0.00044619,14]
[343301234,1732549892430,-151.0,0.00044619,14]
[343301235,1732549892439,-500.0,0.00044619,30]
[343301236,1732549892449,-500.0,0.00044619,30]
[343301237,1732549892459,-500.0,0.00044619,30]
[343301238,1732549892468,-500.0,0.00044619,30]
[343301239,1732549892478,-238.77253164,0.00044619,30]
[343301240,1732549892491,-1408.61,0.00044619,30]
[343301241,1732549892500,-1408.61,0.00044619,30]
[343301242,1732549892509,-1408.61,0.00044619,30]
[343301243,1732549892519,-1408.61,0.00044619,30]
[343301244,1732549892530,-1408.69,0.00044619,30]
[343301245,1732549892540,-1495.52,0.00044619,30]
[343301246,1732549892550,-1495.52,0.00044619,30]
[343301247,1732549892559,-1495.52,0.00044619,30]
[343301248,1732549892569,-1495.52,0.00044619,30]
[343301249,1732549892578,-1495.52,0.00044619,30]
[343301250,1732549892587,-47376.0408466,0.0004462,2]
[343301251,1732549892597,-151.0,0.0004462,14]
[343301252,1732549892607,-151.0,0.0004462,14]
[343301253,1732549892616,-169.152851,0.0004462,14]
[343301254,1732549892626,-169.152851,0.0004462,14]
[343301255,1732549892635,-198.992015,0.0004462,14]
[343301256,1732549892644,-198.992015,0.0004462,14]
[343301257,1732549892654,-245.762043,0.0004462,14]
[343301258,1732549892664,-245.762043,0.0004462,14]
[343301259,1732549892673,-150.0,0.00044624,7]
[343301260,1732549892683,-400.0,0.00044625,30]
[343301261,1732549892692,-415.62440328,0.00044625,30]
[343301262,1732549892701,-326.22,0.00044627,120]
[343301263,1732549892711,-150.5,0.00044637,7]
[343301264,1732549892721,-1494.99913169,0.00044646,7]
[343301265,1732549892731,-150.5,0.00044647,7]
[343301266,1732549892744,-150.0,0.0004465,2]
[343301267,1732549892754,-400.0,0.00044655,30]
[343301268,1732549892762,-300.0,0.00044656,30]
[343301269,1732549892772,-300.0,0.00044656,30]
[343301270,1732549892782,-400.0,0.00044656,30]
[343301271,1732549892792,-300.0,0.00044656,30]
[343301272,1732549892804,-400.0,0.00044656,30]
[343301273,1732549892813,-500.0,0.00044656,30]
[343301274,1732549892822,-150.0,0.00044656,30]
[343301275,1732549892831,-450.23931057,0.00044656,30]
[343301276,1732549892841,-535.87,0.00044656,7]
[343301277,1732549892850,-152.037302,0.00044657,30]
[343301278,1732549892860,-151.0,0.00044657,14]
[343301279,1732549892869,-211.073511,0.00044657,7]
[343301280,1732549892879,-211.073511,0.00044657,7]
[343301281,1732549892888,-151.0,0.00044657,14]
[343301282,1732549892898,-500.0,0.00044657,30]
[343301283,1732549892907,-582.27,0.00044657,30]
[343301284,1732549892917,-151.0,0.00044657,14]
[343301285,1732549892927,-500.0,0.00044657,30]
[343301286,1732549892937,-555.35,0.00044657,30]
[343301287,1732549892949,-500.0,0.00044657,30]
[343301288,1732549892960,-151.0,0.00044657,14]
[343301289,1732549892972,-604.31757333,0.00044657,30]
[343301290,1732549892982,-500.0,0.00044657,30]
[343301291,1732549892997,-500.0,0.00044657,30]
[343301292,1732549893011,-500.0,0.00044657,30]
[343301293,1732549893026,-151.0,0.00044657,14]
[343301294,1732549893036,-517.97250882,0.00044657,30]
[343301295,1732549893046,-248.61081725,0.00044657,30]
[343301296,1732549893057,-373.55674287,0.00044657,30]
[343301297,1732549893067,-500.0,0.00044657,30]
[343301298,1732549893077,-500.0,0.00044657,30]
[343301299,1732549893087,-567.96740897,0.00044657,30]
[343301300,1732549893097,-500.0,0.00044657,30]
[343301301,1732549893107,-500.0,0.00044657,30]
[343301302,1732549893117,-500.0,0.00044657,30]
[343301303,1732549893127,-500.0,0.00044657,30]
[343301304,1732549893137,-151.0,0.00044657,14]
[343301305,1732549893147,-500.0,0.00044657,30]
[343301306,1732549893159,-500.0,0.00044657,30]
[343301307,1732549893168,-300.0,0.00044657,30]
[343301308,1732549893178,-422.98957417,0.00044657,30]
[343301309,1732549893188,-500.0,0.00044657,30]
[343301310,1732549893198,-290.577153,0.00044657,14]
[343301311,1732549893208,-500.0,0.00044657,30]
[343301312,1732549893217,-500.0,0.00044657,30]
[343301313,1732549893227,-500.0,0.00044657,30]
[343301314,1732549893241,-500.0,0.00044657,30]
[343301315,1732549893251,-500.0,0.00044657,30]
[343301316,1732549893260,-500.0,0.00044657,30]
[343301317,1732549893270,-361.37115504,0.00044657,30]
[343301318,1732549893279,-500.0,0.00044657,30]
[343301319,1732549893288,-500.0,0.00044657,30]
[343301320,1732549893298,-500.0,0.00044657,30]
[343301321,1732549893308,-406.11397583,0.00044657,30]
[343301322,1732549893318,-500.0,0.00044657,30]
[343301323,1732549893328,-500.0,0.00044657,30]
[343301324,1732549893338,-500.0,0.00044657,30]
[343301325,1732549893347,-500.0,0.00044657,30]
[343301326,1732549893357,-1579.9,0.00044657,30]
[343301327,1732549893367,-500.0,0.00044657,30]
[343301328,1732549893377,-500.0,0.00044657,30]
[343301329,1732549893387,-500.0,0.00044657,30]
[343301330,1732549893396,-500.0,0.00044657,2]
[343301331,1732549893406,-197.31227457,0.00044657,30]
[343301332,1732549893416,-500.0,0.00044657,30]
[343301333,1732549893426,-500.0,0.00044657,30]
[343301334,1732549893436,-500.0,0.00044657,30]
[343301335,1732549893448,-500.0,0.00044657,30]
[343301336,1732549893460,-169.152851,0.00044657,14]
[343301337,1732549893470,-500.0,0.00044657,30]
[343301338,1732549893481,-169.152853,0.00044657,14]
[343301339,1732549893497,-500.0,0.00044657,30]
[343301340,1732549893507,-322.89,0.00044657,30]
[343301341,1732549893517,-500.0,0.00044657,30]
[343301342,1732549893527,-500.0,0.00044657,30]
[343301343,1732549893538,-500.0,0.00044657,30]
[343301344,1732549893548,-500.0,0.00044657,30]
[343301345,1732549893558,-500.0,0.00044657,30]
[343301346,1732549893568,-500.0,0.00044657,30]
[343301347,1732549893577,-500.0,0.00044657,30]
[343301348,1732549893587,-198.992015,0.00044657,14]
[343301349,1732549893596,-500.0,0.00044657,30]
[343301350,1732549893606,-198.992017,0.00044657,14]
[343301351,1732549893615,-512.09465172,0.00044657,30]
[343301352,1732549893624,-539.61516121,0.00044657,30]
[343301353,1732549893634,-500.0,0.00044657,30]
[343301354,1732549893644,-500.0,0.00044657,30]
[343301355,1732549893654,-500.0,0.00044657,30]
[343301356,1732549893664,-500.0,0.00044657,30]
[343301357,1732549893674,-500.0,0.00044657,30]
[343301358,1732549893684,-500.0,0.00044657,30]
[343301359,1732549893694,-500.0,0.00044657,30]
[343301360,1732549893703,-500.0,0.00044657,30]
[343301361,1732549893714,-245.762043,0.00044657,14]
[343301362,1732549893724,-500.0,0.00044657,30]
[343301363,1732549893737,-500.0,0.00044657,30]
[343301364,1732549893746,-567.07698101,0.00044657,30]
[343301365,1732549893756,-245.762052,0.00044657,14]
[343301366,1732549893766,-500.0,0.00044657,30]
[343301367,1732549893776,-285.17903907,0.00044657,30]
[343301368,1732549893785,-500.0,0.00044657,30]
[343301369,1732549893795,-500.0,0.00044657,30]
[343301370,1732549893805,-500.0,0.00044657,30]
[343301371,1732549893815,-500.0,0.00044657,30]
[343301372,1732549893825,-500.0,0.00044657,30]
[343301373,1732549893835,-500.0,0.00044657,30]
[343301374,1732549893845,-500.0,0.00044657,30]
[343301375,1732549893855,-500.0,0.00044657,30]
[343301376,1732549893865,-500.0,0.00044657,30]
[343301377,1732549893875,-533.99,0.00044657,30]
[343301378,1732549893885,-500.0,0.00044657,30]
[343301379,1732549893895,-508.02,0.00044657,30]
[343301380,1732549893905,-500.0,0.00044657,30]
[343301381,1732549893915,-500.0,0.00044657,30]
[343301382,1732549893925,-500.0,0.00044657,30]
[343301383,1732549893939,-401.69153721,0.00044657,30]
[343301384,1732549893949,-500.0,0.00044657,30]
[343301385,1732549893958,-500.0,0.00044657,30]
[343301386,1732549893970,-500.0,0.00044657,30]
[343301387,1732549893980,-500.0,0.00044657,30]
[343301388,1732549893993,-500.0,0.00044657,30]
[343301389,1732549894002,-500.0,0.00044657,30]
[343301390,1732549894012,-500.0,0.00044657,30]
[343301391,1732549894023,-500.0,0.00044657,30]
[343301392,1732549894033,-500.0,0.00044657,30]
[343301393,1732549894044,-500.0,0.00044657,30]
[343301394,1732549894054,-500.0,0.00044657,30]
[343301395,1732549894064,-500.0,0.00044657,30]
[343301396,1732549894075,-500.0,0.00044657,30]
[343301397,1732549894085,-500.0,0.00044657,30]
[343301398,1732549894094,-500.0,0.00044657,30]
[343301399,1732549894104,-500.0,0.00044657,30]
[343301400,1732549894113,-500.0,0.00044657,30]
[343301401,1732549894123,-602.69,0.00044657,30]
[343301402,1732549894132,-500.0,0.00044657,30]
[343301403,1732549894142,-500.0,0.00044657,30]
[343301404,1732549894152,-500.0,0.00044657,30]
[343301405,1732549894162,-526.7975758,0.00044657,30]
[343301406,1732549894173,-791.23,0.00044657,30]
[343301407,1732549894182,-500.0,0.00044657,30]
[343301408,1732549894192,-500.0,0.00044657,30]
[343301409,1732549894201,-275.16846262,0.00044657,30]
[343301410,1732549894211,-500.0,0.00044657,30]
[343301411,1732549894221,-500.0,0.00044657,30]
[343301412,1732549894231,-500.0,0.00044657,30]
[343301413,1732549894244,-500.0,0.00044657,30]
[343301414,1732549894253,-265.90278033,0.00044657,30]
[343301415,1732549894263,-500.0,0.00044657,30]
[343301416,1732549894273,-641.30769449,0.00044657,30]
[343301417,1732549894284,-500.0,0.00044657,30]
[343301418,1732549894294,-500.0,0.00044657,30]
[343301419,1732549894304,-500.0,0.00044657,30]
[343301420,1732549894314,-500.0,0.00044657,30]
[343301421,1732549894324,-500.0,0.00044657,30]
[343301422,1732549894334,-500.0,0.00044657,30]
[343301423,1732549894346,-500.0,0.00044657,30]
[343301424,1732549894355,-590.44,0.00044657,30]
[343301425,1732549894365,-500.0,0.00044657,30]
[343301426,1732549894375,-500.0,0.00044657,30]
[343301427,1732549894385,-500.0,0.00044657,30]
[343301428,1732549894394,-612.6,0.00044657,30]
[343301429,1732549894579,-500.0,0.00044657,30]
[343301430,1732549894593,-500.0,0.00044657,30]
[343301431,1732549894603,-500.0,0.00044657,30]
[343301432,1732549894613,-500.0,0.00044657,30]
[343301433,1732549894624,-500.0,0.00044657,30]
[343301434,1732549894634,-500.0,0.00044657,30]
[343301435,1732549894644,-500.0,0.00044657,30]
[343301436,1732549894654,-500.0,0.00044657,30]
[343301437,1732549894664,-500.0,0.00044657,30]
[343301438,1732549894674,-500.0,0.00044657,30]
[343301439,1732549894684,-625.96,0.00044657,30]
[343301440,1732549894694,-500.0,0.00044657,30]
[343301441,1732549894703,-500.0,0.00044657,30]
[343301442,1732549894713,-500.0,0.00044657,30]
[343301443,1732549894723,-500.0,0.00044657,30]
[343301444,1732549894734,-500.0,0.00044657,30]
[343301445,1732549894745,-500.0,0.00044657,30]
[343301446,1732549894754,-801.25,0.00044657,30]
[343301447,1732549894764,-500.0,0.00044657,30]
[343301448,1732549894773,-500.0,0.00044657,30]
[343301449,1732549894783,-500.0,0.00044657,30]
[343301450,1732549894792,-509.14461012,0.00044657,30]
[343301451,1732549894802,-509.84985257,0.00044657,30]
[343301452,1732549894812,-500.0,0.00044657,30]
[343301453,1732549894822,-500.0,0.00044657,30]
[343301454,1732549894831,-180.45115822,0.00044657,30]
[343301455,1732549894841,-500.0,0.00044657,30]
[343301456,1732549894851,-500.0,0.00044657,30]
[343301457,1732549894867,-500.0,0.00044657,30]
[343301458,1732549894877,-500.0,0.00044657,30]
[343301459,1732549894887,-500.0,0.00044657,30]
[343301460,1732549894896,-667.94,0.00044657,30]
[343301461,1732549894907,-500.0,0.00044657,30]
[343301462,1732549894917,-500.0,0.00044657,30]
[343301463,1732549894927,-206.85,0.00044657,30]
[343301464,1732549894942,-500.0,0.00044657,30]
[343301465,1732549894951,-500.0,0.00044657,30]
[343301466,1732549894961,-500.0,0.00044657,30]
[343301467,1732549894971,-614.74319351,0.00044657,30]
[343301468,1732549894982,-500.0,0.00044657,30]
[343301469,1732549894994,-500.0,0.00044657,30]
[343301470,1732549895004,-500.0,0.00044657,30]
[343301471,1732549895015,-457.08875047,0.00044657,30]
[343301472,1732549895025,-627.36,0.00044657,30]
[343301473,1732549895035,-500.0,0.00044657,30]
[343301474,1732549895044,-500.0,0.00044657,30]
[343301475,1732549895054,-603.01,0.00044657,30]
[343301476,1732549895063,-500.0,0.00044657,30]
[343301477,1732549895072,-500.0,0.00044657,30]
[343301478,1732549895082,-500.0,0.00044657,30]
[343301479,1732549895091,-797.31,0.00044657,30]
[343301480,1732549895101,-500.0,0.00044657,30]
[343301481,1732549895110,-500.0,0.00044657,30]
[343301482,1732549895119,-500.0,0.00044657,30]
[343301483,1732549895129,-500.0,0.00044657,30]
[343301484,1732549895138,-500.0,0.00044657,30]
[343301485,1732549895147,-500.0,0.00044657,30]
[343301486,1732549895157,-500.0,0.00044657,30]
[343301487,1732549895167,-500.0,0.00044657,30]
[343301488,1732549895176,-500.0,0.00044657,30]
[343301489,1732549895186,-500.0,0.00044657,30]
[343301490,1732549895196,-500.0,0.00044657,30]
[343301491,1732549895206,-508.98800256,0.00044657,30]
[343301492,1732549895215,-500.0,0.00044657,30]
[343301493,1732549895224,-624.44,0.00044657,30]
[343301494,1732549895235,-500.0,0.00044657,30]
[343301495,1732549895245,-500.0,0.00044657,30]
[343301496,1732549895255,-500.0,0.00044657,30]
[343301497,1732549895265,-709.92,0.00044657,30]
[343301498,1732549895275,-500.0,0.00044657,30]
[343301499,1732549895285,-500.0,0.00044657,30]
[343301500,1732549895295,-154.56,0.00044657,30]
[343301501,1732549895305,-559.82,0.00044657,30]
[343301502,1732549895315,-500.0,0.00044657,30]
[343301503,1732549895325,-500.0,0.00044657,30]
[343301504,1732549895335,-500.0,0.00044657,30]
[343301505,1732549895345,-687.51,0.00044657,30]
[343301506,1732549895354,-500.0,0.00044657,30]
[343301507,1732549895363,-500.0,0.00044657,30]
[343301508,1732549895373,-500.0,0.00044657,30]
[343301509,1732549895383,-500.0,0.00044657,30]
[343301510,1732549895392,-500.0,0.00044657,30]
[343301511,1732549895402,-276.48614981,0.00044657,30]
[343301512,1732549895412,-500.0,0.00044657,30]
[343301513,1732549895422,-1432.96,0.00044657,30]
[343301514,1732549895432,-506.94,0.00044657,30]
[343301515,1732549895442,-500.0,0.00044657,30]
[343301516,1732549895452,-500.0,0.00044657,30]
[343301517,1732549895461,-222.76478208,0.00044657,30]
[343301518,1732549895471,-922.07,0.00044657,30]
[343301519,1732549895480,-500.0,0.00044657,30]
[343301520,1732549895492,-500.0,0.00044657,30]
[343301521,1732549895502,-500.0,0.00044657,30]
[343301522,1732549895511,-500.0,0.00044657,30]
[343301523,1732549895521,-500.0,0.00044657,30]
[343301524,1732549895531,-500.0,0.00044657,30]
[343301525,1732549895540,-500.0,0.00044657,30]
[343301526,1732549895550,-543.28,0.00044657,30]
[343301527,1732549895559,-500.0,0.00044657,30]
[343301528,1732549895569,-500.0,0.00044657,30]
[343301529,1732549895579,-705.98,0.00044657,30]
[343301530,1732549895589,-500.0,0.00044657,30]
[343301531,1732549895599,-500.0,0.00044657,30]
[343301532,1732549895608,-643.95,0.00044657,30]
[343301533,1732549895618,-500.0,0.00044657,30]
[343301534,1732549895627,-500.0,0.00044657,30]
[343301535,1732549895638,-178.20231734,0.00044657,30]
[343301536,1732549895647,-500.0,0.00044657,30]
[343301537,1732549895657,-500.0,0.00044657,30]
[343301538,1732549895666,-500.0,0.00044657,30]
[343301539,1732549895675,-500.0,0.00044657,30]
[343301540,1732549895685,-500.0,0.00044657,30]
[343301541,1732549895694,-500.0,0.00044657,30]
[343301542,1732549895703,-500.0,0.00044657,30]
[343301543,1732549895712,-508.45357423,0.00044657,30]
[343301544,1732549895722,-500.0,0.00044657,30]
[343301545,1732549895731,-500.0,0.00044657,30]
[343301546,1732549895743,-509.06766993,0.00044657,30]
[343301547,1732549895752,-911.28,0.00044657,30]
[343301548,1732549895762,-500.0,0.00044657,30]
[343301549,1732549895771,-500.0,0.00044657,30]
[343301550,1732549895780,-500.0,0.00044657,30]
[343301551,1732549895790,-3730.01,0.00044657,30]
[343301552,1732549895799,-500.0,0.00044657,30]
[343301553,1732549895808,-500.0,0.00044657,30]
[343301554,1732549895817,-500.0,0.00044657,30]
[343301555,1732549895826,-500.0,0.00044657,30]
[343301556,1732549895836,-500.0,0.00044657,30]
[343301557,1732549895845,-500.0,0.00044657,30]
[343301558,1732549895855,-508.58166379,0.00044657,30]
[343301559,1732549895873,-1676.82,0.00044657,30]
[343301560,1732549895883,-792.36,0.00044657,30]
[343301561,1732549895891,-264.66377096,0.00044657,30]
[343301562,1732549895901,-500.0,0.00044657,30]
[343301563,1732549895910,-500.0,0.00044657,30]
[343301564,1732549895921,-547.81413767,0.00044657,30]
[343301565,1732549895931,-500.0,0.00044657,120]
[343301566,1732549895954,-284.90718919,0.00044657,30]
[343301567,1732549895965,-500.0,0.00044657,30]
[343301568,1732549895974,-500.0,0.00044657,30]
[343301569,1732549895987,-500.0,0.00044657,30]
[343301570,1732549895997,-500.0,0.00044657,30]
[343301571,1732549896006,-500.0,0.00044657,30]
[343301572,1732549896021,-500.0,0.00044657,30]
[343301573,1732549896031,-605.86667529,0.00044657,30]
[343301574,1732549896040,-500.0,0.00044657,30]
[343301575,1732549896049,-500.0,0.00044657,30]
[343301576,1732549896061,-500.0,0.00044657,30]
[343301577,1732549896081,-689.61,0.00044657,30]
[343301578,1732549896094,-500.0,0.00044657,30]
[343301579,1732549896114,-900.22,0.00044657,30]
[343301580,1732549896123,-500.0,0.00044657,30]
[343301581,1732549896133,-823.86,0.00044657,30]
[343301582,1732549896143,-505.23,0.00044657,30]
[343301583,1732549896154,-500.0,0.00044657,30]
[343301584,1732549896164,-500.0,0.00044657,30]
[343301585,1732549896174,-500.0,0.00044657,30]
[343301586,1732549896183,-500.0,0.00044657,30]
[343301587,1732549896192,-500.0,0.00044657,30]
[343301588,1732549896202,-500.0,0.00044657,30]
[343301589,1732549896211,-315.548188,0.00044657,14]
[343301590,1732549896220,-500.0,0.00044657,120]
[343301591,1732549896230,-500.0,0.00044657,30]
[343301592,1732549896242,-514.07,0.00044657,30]
[343301593,1732549896252,-500.0,0.00044657,30]
[343301594,1732549896262,-500.0,0.00044657,30]
[343301595,1732549896271,-500.0,0.00044657,30]
[343301596,1732549896281,-1000.0,0.00044657,10]
[343301597,1732549896290,-500.0,0.00044657,30]
[343301598,1732549896299,-500.0,0.00044657,30]
[343301599,1732549896308,-500.0,0.00044657,30]
[343301600,1732549896318,-505.75,0.00044657,30]
[343301601,1732549896332,-180.29,0.00044657,30]
[343301602,1732549896342,-500.0,0.00044657,30]
[343301603,1732549896351,-1011.43,0.00044657,30]
[343301604,1732549896361,-921.14,0.00044657,30]
[343301605,1732549896370,-500.0,0.00044657,30]
[343301606,1732549896380,-500.0,0.00044657,30]
[343301607,1732549896389,-558.60313626,0.00044657,30]
[343301608,1732549896399,-500.0,0.00044657,30]
[343301609,1732549896408,-500.0,0.00044657,30]
[343301610,1732549896418,-500.0,0.00044657,30]
[343301611,1732549896427,-500.0,0.00044657,30]
[343301612,1732549896437,-522.84,0.00044657,30]
[343301613,1732549896447,-500.0,0.00044657,30]